Cogmind - Beta 15 @@@ ROGUE MODE // 2025.09.18 @ 22:05:03 Player: Lillith Result: Destroyed by H-55 Commando with Assault Rifle Performance ------------- Evolutions (0) 0 Regions Visited (4) 800 Robots Destroyed (42) 210 Value Destroyed (804) 804 Prototype IDs (13) 260 Alien Tech Used (0) 0 Bonus (153) 153 TOTAL SCORE: 2227 Bonus ------- Follower Combat Kills 153 Cogmind --------- Core Integrity 0/250 Matter 245/300 Energy 57/100 System Corruption 2% Temperature Cool (0) Movement Treading (320) Ox2 Location -9/Recycling Parts ------- > --- POWER (1) -------- (None) > --- PROPULSION (2) --- Light Treads Subdweller Monowheel > --- UTILITY (2) ------ High-capacity Storage Unit Makeshift Light Armor Plating > --- WEAPON (2) ------- Heavy Assault Rifle > --- INVENTORY (20) --- Seismic Detector Makeshift Hacking Suite Rainbow Chip SUBCON Basin (Full) Peak State ------------ > --- POWER ------------ Subdweller Power Source > --- PROPULSION ------- Light Treads Light Treads > --- UTILITY ---------- High-capacity Storage Unit Makeshift Light Armor Plating > --- WEAPON ----------- Subdweller Machine Gun Subdweller Machine Gun > --- INVENTORY -------- Subdweller Monowheel Seismic Detector Makeshift Hacking Suite Rainbow Chip Rocket Launcher SUBCON Basin [Rating: 33] Favorites ----------- Power Light Ion Engine Engine Light Ion Engine Propulsion Light Treads Treads Light Treads Wheel Wheel Utility High-capacity Storage Unit Device Seismic Detector Storage High-capacity Storage Unit Protection Makeshift Light Armor Plating Weapon Subdweller Machine Gun Ballistic Gun Subdweller Machine Gun Ballistic Cannon Light Cannon Launcher Rocket Launcher Build | -11 -10 -10 -10 -9 ------- Run | Yrd Mat Min Sub Rec Slots Evolved . | . . . . . Power . | . . . . . Propulsion . | . . . . . Utility . | . . . . . Weapon . | . . . . . Parts Attached 27 | 8 5 . 11 3 Power 4 | 2 1 . 1 . Engine 4 | 2 1 . 1 . Core . | . . . . . Reactor . | . . . . . Propulsion 6 | 2 1 . 2 1 Treads 4 | 1 1 . 2 . Leg . | . . . . . Wheel 2 | 1 . . . 1 Hover . | . . . . . Flight . | . . . . . Utility 6 | 2 2 . 2 . Device 2 | 1 1 . . . Storage 2 | 1 1 . . . Processor . | . . . . . Hackware . | . . . . . Protection 2 | . . . 2 . Artifact . | . . . . . Weapon 11 | 2 1 . 6 2 Energy Gun . | . . . . . Energy Cannon . | . . . . . Ballistic Gun 8 | 2 . . 5 1 Ballistic Cannon 1 | . 1 . . . Launcher 2 | . . . 1 1 Special Weapon . | . . . . . Impact Weapon . | . . . . . Slashing Weapon . | . . . . . Piercing Weapon . | . . . . . Special Melee Weapon . | . . . . . Unidentified Prototypes . | . . . . . Parts Lost 8 | . 2 . . 6 Power 1 | . . . . 1 Propulsion 2 | . 1 . . 1 Utility 1 | . 1 . . . Weapon 4 | . . . . 4 Highest Loss Streak 5 | . 1 . . 5 To Critical Strikes . | . . . . . Average Backups 9 | 4 12 20 7 4 Power . | . 1 2 . . Propulsion 2 | 2 3 4 1 . Utility 3 | . 2 7 3 3 Weapon 2 | . 3 5 2 . Tool/Special . | . . . . . Unused Backups 17 | . 3 . 12 2 Power . | . . . . . Propulsion 3 | . 2 . 1 . Utility 9 | . 1 . 6 2 Weapon 4 | . . . 4 . Tool/Special 1 | . . . 1 . Average Slot Usage (%) 99 | . 99 100 99 99 Engine 13 | . 14 14 13 13 Treads 27 | . 25 28 28 27 Device 9 | . 13 14 8 . Storage 14 | . 14 14 14 14 Protection 4 | . . . 5 14 Ballistic Gun 27 | . 27 28 27 27 Peak Build Rating 33 | 7 9 9 33 33 Average Rating 19 | 5 7 8 26 32 On Entrance 11 | . 7 9 9 33 Naked Turns . | . . . . . Heaviest Build 57 | 13 48 46 57 57 Greatest Support 40 | 20 40 40 40 40 Greatest Overweight (x) 2 | 1 2 1 1 2 Average Overweight (x) . | . . 1 1 1 Largest Inventory Capacity 20 | 8 20 20 20 20 Average Capacity 18 | 7 17 20 20 20 Most Carried 20 | 7 20 20 20 20 Average Carried 17 | 5 12 19 19 19 Final Capacity 20 | 8 20 20 20 20 Final Carried 20 | 7 20 20 20 18 Class Distribution -------------------- 89% | Mutant 10% | Commander-Mutant Dominant Class ---------------- Mutant | -10/Materials Mutant | -10/Mines Mutant | -10/Subcaves Commander-Mutant | -9/Recycling Resources | -11 -10 -10 -10 -9 ----------- Run | Yrd Mat Min Sub Rec Matter Collected 1249 | 320 224 . 542 163 Remotely . | . . . . . Salvage Created 1134 | 237 517 . 147 233 Parts 80 | 16 37 . 14 13 Haulers Intercepted 1 | . 1 . . . Recyclers Shooed 2 | 1 1 . . . Parts Field Recycled . | . . . . . Retrieved Matter . | . . . . . Parts Self-Destructed 14 | . . . 14 . Prevented . | . . . . . Kills | -11 -10 -10 -10 -9 ------- Run | Yrd Mat Min Sub Rec Combat Hostiles Destroyed 26 | . 13 . 7 6 Guns 20 | . 13 . 3 4 AOE 6 | . . . 4 2 Classes Destroyed 12 | 3 4 . 3 2 Worker 4 | 2 2 . . . Tunneler 6 | 5 1 . . . Hauler 1 | . 1 . . . Recycler 2 | 1 1 . . . Turret 2 | . . . 2 . Watcher 1 | . 1 . . . Swarmer 13 | . 9 . 4 . Grunt 5 | . 4 . . 1 Sentry 4 | . . . 1 3 Demolisher 1 | . . . . 1 Hunter 1 | . . . . 1 Subdweller 2 | . . . 2 . Best Kill Streak 6 | 5 5 . 6 4 Combat Bots Only 4 | . 4 . 4 4 Max Kills in Single Turn 2 | 1 1 . 2 1 Gunslinging . | . . . . . Exploded 2 | . . . 2 1 Melee . | . . . . . Uniques/NPCs Destroyed . | . . . . . Combat | -11 -10 -10 -10 -9 -------- Run | Yrd Mat Min Sub Rec Hostile Shots Fired 198 | . 82 . 41 75 Missed 63 | . 24 . 18 21 Hits 135 | . 58 . 23 54 Melee 2 | . . . . 2 Projectile 133 | . 58 . 23 52 AOE 8 | . . . . 8 Critical Strikes 5 | . . . . 5 Damage Taken 1674 | . 534 . 171 969 Core 253 | . 76 . 50 127 Absorbed by Shields 20 | . . . . 20 Core Remaining (%) 100 | 100 . . . . Volleys Fired 170 | 20 77 . 61 12 Largest 2 | 2 2 . 2 2 Hottest 63 | 40 40 . 60 63 Shots Fired 315 | 40 149 . 104 22 Gun 300 | 40 144 . 96 20 Cannon 5 | . 5 . . . Launcher 10 | . . . 8 2 Special . | . . . . . Kinetic 305 | 40 149 . 96 20 Thermal . | . . . . . Explosive 10 | . . . 8 2 Electromagnetic . | . . . . . Robot Hit Streak 13 | 13 6 . 7 6 Robot Miss Streak 4 | 1 4 . 1 2 Penetration Max . | . . . . . Secondary Targets 1 | . . . . 1 Max Gunslinging Chain 1 | . . . . 1 Shots Hit Robots 140 | 30 79 . 14 17 Core Hits 79 | 13 35 . 15 16 Critical Kills 1 | . 1 . . . Critical Parts Destroyed . | . . . . . Critical Strikes 1 | . 1 . . . Destroy 1 | . 1 . . . Melee Attacks . | . . . . . Impact . | . . . . . Slashing . | . . . . . Piercing . | . . . . . Sneak Attacks . | . . . . . Combat Hostiles . | . . . . . Follow-up Attacks . | . . . . . Damage Inflicted 2158 | 247 652 . 620 639 Guns 1387 | 247 652 . 168 320 Cannons . | . . . . . Explosions 771 | . . . 452 319 Melee . | . . . . . Ramming . | . . . . . Kinetic 1387 | 247 652 . 168 320 Thermal . | . . . . . Explosive 771 | . . . 452 319 Electromagnetic . | . . . . . Impact . | . . . . . Slashing . | . . . . . Piercing . | . . . . . Highest Corruption 2 | . . . . 2 Average Corruption 1 | . . . . 1 Corruption Purged . | . . . . . Corruption Blocked . | . . . . . Overload Shots . | . . . . . Overflow Damage 66 | . . . 41 25 Projectiles . | . . . . . Explosions 66 | . . . 41 25 Melee . | . . . . . Knockbacks . | . . . . . Impact . | . . . . . Kinetic . | . . . . . Secondary . | . . . . . Self-Inflicted Damage 67 | . . . . 67 Shots 2 | . . . . 2 Rammed . | . . . . . Targets Rammed . | . . . . . Kicked . | . . . . . Crushed . | . . . . . Highest Temperature 27 | . 18 . . 27 Average Temperature 12 | . 8 . . 15 Received Heat Transfer 357 | . 108 . 132 117 Siege Activations . | . . . . . Martial Activations . | . . . . . Shielding Activations . | . . . . . Robots Disrupted . | . . . . . Combat Hostiles . | . . . . . Robots Corrupted . | . . . . . Combat Hostiles . | . . . . . Parts Fried . | . . . . . Impact Corruptions . | . . . . . Robots Melted . | . . . . . Combat Hostiles . | . . . . . Parts Melted . | . . . . . Heat Transferred . | . . . . . Parts Sabotaged . | . . . . . Parts Stolen . | . . . . . Parts Stripped . | . . . . . Power Chain Reactions . | . . . . . Alert | -11 -10 -10 -10 -9 ------- Run | Yrd Mat Min Sub Rec Maximum Alert Level . | . . . . . Low Security (%) 100 | 100 100 100 . 100 Level 1 . | . . . . . Level 2 . | . . . . . Level 3 . | . . . . . Level 4 . | . . . . . Level 5 . | . . . . . High Security . | . . . . . Max Security . | . . . . . Peak Influence 133 | 10 133 . . 125 Initial 84 | . . . . 84 Average 25 | 1 33 . . 35 Influence Increases 904 | 40 411 . 200 253 Destroy 0b10 Robot/C 540 | . 260 . 140 140 Destroy 0b10 Robot/NC 75 | 40 30 . . 5 Destroy Leader 44 | . 44 . . . Allied During Kill 4 | . . . . 4 Successful Hack 38 | . 32 . . 6 Select Force Hacks 120 | . 30 . . 90 Destroy Structure 8 | . . . . 8 Lose Combat Pursuer 75 | . 15 . 60 . Influence Decreases 904 | 40 411 . 24 429 Entered New Map 92 | . . . . 92 Time Decay 732 | 40 391 . 24 277 Lost Part 80 | . 20 . . 60 Squads Dispatched 2 | . 2 . . . Investigation 1 | . 1 . . . Extermination . | . . . . . Reinforcement 1 | . 1 . . . Assault . | . . . . . Garrison . | . . . . . Intercept . | . . . . . Searches Triggered . | . . . . . Construction Impeded . | . . . . . Haulers Reinforced . | . . . . . Active Scanning Responses . | . . . . . Cargo Convoy Interrupts . | . . . . . Stealth | -11 -10 -10 -10 -9 --------- Run | Yrd Mat Min Sub Rec Distress Signals 2 | . 2 . . . Communications Jammed . | . . . . . Distress Signals . | . . . . . Times Spotted 46 | . 23 . 11 12 Peak Tracking Total 7 | . 4 . 4 7 Tactical Retreats 2 | . 1 . 1 . Traps | -11 -10 -10 -10 -9 ------- Run | Yrd Mat Min Sub Rec Traps Triggered . | . . . . . Indirectly . | . . . . . Trap Hack Attempts . | . . . . . Triggered . | . . . . . Disarmed . | . . . . . Reprogrammed . | . . . . . Reused . | . . . . . Traps Extracted . | . . . . . Installed . | . . . . . Triggered . | . . . . . Machines | -11 -10 -10 -10 -9 ---------- Run | Yrd Mat Min Sub Rec Machines Disabled 5 | . . . 5 . Max in Single Turn 3 | . . . 3 . Machines Repaired . | . . . . . Machines Dismantled . | . . . . . Machines Sabotaged . | . . . . . Overloaded Fab Kills . | . . . . . Hacking | -11 -10 -10 -10 -9 --------- Run | Yrd Mat Min Sub Rec Machines Accessed 15 | . 7 . 3 5 Terminals 8 | . 6 . . 2 Fabricators . | . . . . . Repair Stations . | . . . . . Recycling Units 4 | . 1 . . 3 Scanalyzers . | . . . . . Garrison Access . | . . . . . Total Hacks 32 | . 18 . 3 11 Successful 18 | . 10 . 3 5 Failed 14 | . 8 . . 6 Catastrophic 4 | . 2 . . 2 Database Lockouts . | . . . . . Manual 17 | . 10 . . 7 Terminals 20 | . 15 . . 5 Fabricators . | . . . . . Repair Stations . | . . . . . Recycling Units 9 | . 3 . . 6 Scanalyzers . | . . . . . Garrison Access . | . . . . . Terminal Hacks 11 | . 7 . 3 1 Part Schematic 1 | . . . . 1 Robot Analysis 4 | . 4 . . . Prototype ID Bank 1 | . 1 . . . Open Door 1 | . . . 1 . Locate Traps 1 | . 1 . . . Hauler Manifests 1 | . 1 . . . Proto ID Catalog 1 | . . . 1 . Release Object 1 | . . . 1 . Fabricator Hacks . | . . . . . Repair Station Hacks . | . . . . . Recycling Unit Hacks 2 | . 1 . . 1 Retrieve Components 2 | . 1 . . 1 Scanalyzer . | . . . . . Garrison Access Hacks . | . . . . . Unauthorized Hacks 5 | . 2 . . 3 Terminals 1 | . 1 . . . Operators 1 | . 1 . . . Fabricators . | . . . . . Repair Stations . | . . . . . Recycling Units 4 | . 1 . . 3 Tunnel 4 | . 1 . . 3 Scanalyzers . | . . . . . Garrison Access . | . . . . . Data Cores Recovered . | . . . . . Used . | . . . . . Hacking Detections 7 | . 6 . . 1 Full Trace Events . | . . . . . Feedback Events . | . . . . . Feedback Blocked . | . . . . . Robot Schematics Acquired . | . . . . . Robots Built . | . . . . . Authchips . | . . . . . Time . | . . . . . Total Robot Build Rating . | . . . . . Part Schematics Acquired 1 | . . . . 1 Parts Built . | . . . . . Authchips . | . . . . . Time . | . . . . . Total Part Build Rating . | . . . . . Parts Repaired . | . . . . . Time . | . . . . . Parts Recycled . | . . . . . Recycled Matter . | . . . . . Retrieved Matter . | . . . . . Retrieved Components 3 | . 2 . . 1 Parts Scanalyzed . | . . . . . Part Schematics Acquired . | . . . . . Parts Damaged . | . . . . . Bothacking | -11 -10 -10 -10 -9 ------------ Run | Yrd Mat Min Sub Rec Used RIF Installer . | . . . . . Robots Hacked . | . . . . . Non-combat . | . . . . . Combat . | . . . . . Robot Hacks Applied . | . . . . . Relay Couplers Released . | . . . . . Fabnet Peak Effective % . | . . . . . Robots Rewired 7 | . . . . 7 Allies Hacked . | . . . . . Hacks Repelled . | . . . . . Allies | -11 -10 -10 -10 -9 -------- Run | Yrd Mat Min Sub Rec Total Allies 10 | . . 3 . 7 Largest Group 7 | . . 3 3 7 Highest-Rated Group 113 | . . 40 40 113 Highest-Rated Ally 27 | . . 16 16 27 Total Orders . | . . . . . Ally Attacks 44 | . . . 35 9 Total Damage 571 | . . . 488 83 Kills 6 | . . . 4 2 Allies Corrupted . | . . . . . Allies Melted . | . . . . . Intel | -11 -10 -10 -10 -9 ------- Run | Yrd Mat Min Sub Rec Active Infowar (turns) 3974 | 9 1646 636 1683 . Seismic 3974 | 9 1646 636 1683 . Robot Analysis Total 4 | . 4 . . . Derelict Logs Recovered 4 | . . 2 2 . Drone Launches . | . . . . . Drone Recoveries . | . . . . . Exploration | -11 -10 -10 -10 -9 ------------- Run | Yrd Mat Min Sub Rec Turns Passed 6230 | 150 1666 636 2913 865 Spaces Moved 2416 | 65 676 263 1119 293 Core 1 | 1 . . . . Treads 2217 | 31 513 263 1119 291 Legs . | . . . . . Wheels 198 | 33 163 . . 2 Hover . | . . . . . Flight . | . . . . . Fastest Speed 50 | 50 95 240 240 130 Average Speed 226 | 123 202 240 240 239 Slowest Speed 320 | 160 320 240 240 240 Overloaded Moves . | . . . . . Propulsion Burnouts . | . . . . . Robots Hopped . | . . . . . Potential Cave-ins 17 | . . . 17 . Cave-ins Triggered . | . . . . . Exploration Rate (%) 53 | 4 83 58 51 73 Regions Visited 4 Branch Regions 3 Pre-discovered Areas 4 | . 1 . . 3 Known Exits Taken . | . . . . . Unknown Exits Taken 4 | 1 1 1 1 . Scrap Searched 2 | . . . 2 . Spaces Dug 20 | . . . 20 . Terrain Destroyed 65 | . . . 56 9 Melee . | . . . . . Projectile 25 | . . . 24 1 AOE 40 | . . . 32 8 Terrain Rammed . | . . . . . Walls Destroyed . | . . . . . Machines Disabled . | . . . . . Actions | -11 -10 -10 -10 -9 --------- Run | Yrd Mat Min Sub Rec Total 2905 | 98 853 270 1250 434 Wait 104 | . 75 4 25 . Move 2412 | 64 675 262 1118 293 Hop . | . . . . . Pick Up 31 | 6 16 2 6 1 Fast Attach 13 | 7 . . 4 2 Attach 5 | . 2 . . 3 Detach . | . . . . . Swap 17 | 1 5 . 9 2 Drop 32 | . 3 2 27 . Fire 170 | 20 77 . 61 12 Melee . | . . . . . Ram . | . . . . . Kick . | . . . . . Crush . | . . . . . Escape Stasis . | . . . . . Rewire 121 | . . . . 121 Trap . | . . . . . Miscellaneous . | . . . . . Route ------- -11/Scrapyard -10/Materials (discovered 3 exits: [*Mat x2] / [*Min]) -10/Mines (discovered 2 exits: [*Mat] / *Sub) -10/Subcaves (discovered 2 exits: [*Mat] / *Rec) -9/Recycling (discovered 1 exit: [*Fac]) History --------- Turn | Location | Event 19 | -11/Scrapyard | Discovered new exit (range 15) 151 | -11/Scrapyard | Entered Materials 330 | -10/Materials | Build established: Mutant 648 | -10/Materials | Discovered new exit (range 16) 1181 | -10/Materials | Discovered new exit (range 13) 1472 | -10/Materials | Discovered new exit (range 10) 1817 | -10/Materials | Entered Mines 1824 | -10/Mines | Received a Rocket Launcher from a helpful Derelict 2121 | -10/Mines | Learned Materials interactive machine intel 2239 | -10/Mines | Assisted by bots powering up and referring to "LRC-V3" 2294 | -10/Mines | Discovered new exit (range 10) 2330 | -10/Mines | Discovered new exit (range 8) 2335 | -10/Mines | Learned location of 1 exit from Materials 2369 | -10/Mines | A weapon hastily lodged in a ceiling crevice suddenly fell to the ground 2453 | -10/Mines | Entered Subcaves 2453 | -10/Subcaves | Accompanied by 3 allies 2454 | -10/Subcaves | Approached by a straggling Scientist 2489 | -10/Subcaves | Learned Materials garrison access intel 2539 | -10/Subcaves | A swath of the cavern ceiling suddenly collapsed 3021 | -10/Subcaves | Found SUBCON Basin 3117 | -10/Subcaves | A swath of the cavern ceiling suddenly collapsed 3418 | -10/Subcaves | Ambushed by Subdweller buried in earth 3895 | -10/Subcaves | Visited 4L-MR0's lab 3919 | -10/Subcaves | Found Rainbow Chip 4324 | -10/Subcaves | Shifting Twisted Machinery released Sub. Machine Gun 4355 | -10/Subcaves | Shifting Twisted Machinery released Sub. Optics 4379 | -10/Subcaves | Shifting Twisted Machinery released Mak. Light Armor Plating 4575 | -10/Subcaves | Shifting Twisted Machinery released Sub. Machine Gun 4578 | -10/Subcaves | Discovered new exit (range 7) 4754 | -10/Subcaves | Learned Materials stockpile data 4867 | -10/Subcaves | Curiously followed by a Cobbler waking with a query about "LVR3C" 5303 | -10/Subcaves | Core integrity fell below 50% 5310 | -10/Subcaves | Discovered new exit (range 15) 5366 | -10/Subcaves | Entered Recycling 5485 | -9/Recycling | Core integrity fell below 20% 5879 | -9/Recycling | Build established: Commander-Mutant 6089 | -9/Recycling | Discovered new exit (range 8) 6231 | -9/Recycling | Destroyed by H-55 Commando with Assault Rifle Last Messages --------------- 06221_ Destroyed Rocket Launcher. 06221_ T-07 Excavator destroyed. 06222_ Lgt. Treads destroyed. 06225_ Penetrated by Slug. 06225_ Sub. Machine Gun destroyed. 06227_ R-06 Scavenger destroyed. 06228_ Acquired Hvy. Assault Rifle. 06228_ Slug penetrates Wall. 06229_ Critical hit (Burn: +37). 06229_ Critical hit (Destroy). 06230_ The unstable cave ceiling collapses. 06230_ L-31 Rogue crushed by falling debris. 06230_ L-31 Rogue system corrupted by crushing effect. 06230_ L-31 Rogue destroyed. 06230_ Beam Rifle crushed. 06231_ Acquired Lgt. Treads. 06231_ R-06 Scavenger collects Aluminum Leg. 06231_ Penetrated by Slug. 06231_ Critical hit (Destroy). Map ----- +----------------------------------------------------+ | #?#####????# #??### # #????????? | | #?#%% #????# #??#"" # ##????????? | | ###%%%######% #??#"Y # #?????????? | | % ] + #??#"" # #?????????? | | #### ######## ####??### # #?????????? | | #??# ""#????# #???????# # #?????????? | | = ???# Y"#????#+#???????# # #?????????? | | ] ???# ""#??? ??????# ###+#####?????????? | | +##/##### #### ????# #?# #?????????????? | | + ## ### #?????????????? | | # # ## #?????????????? | | # # ## #?????????????? | | + + ## #?????????????? | | ####### # #?????????????? | | """ #?????# # ## #?????????????? | | """"" #?????# ######## #?????????????? | | """" #?????# #??????# #?????????????? | | #?????# #??????# #?????????????? | | #?????# ##??#### #?????????????? | | ###### #?????############ ##?# #?????????????? | | ?????# #?????????????# ### #?????????????? | | ######+#???????####### r # #?????????????? | | ! #???????# k !%rhp % %* #?????????????? | | ! ! #???????# Y%= ! ###?????????????? | | #???????# % % ####???????????????? | | ! #???????# ] #@ #???????????????? | | #???????# ! #???????????????? | | !#???????# % d #???????????????? | | #???????# ! =i # #???????????????? | | #???????# k= ! # ; ?????????????? | | !!! #???????# [ d # ####????????????? | | #???????########?# #???????????????? | | #????????????????# = #???????????????? | | !! #????????????????# *!! #???????????????? | | ########?????????????????####%####???????????????? | | ?????????????????????????????##??????????????????? | | ?????????????????????????????????????????????????? | | ?????????????????????????????????????????????????? | | ?????????????????????????????????????????????????? | | ?????????????????????????????????????????????????? | | ?????????????????????????????????????????????????? | | ?????????????????????????????????????????????????? | | ?????????????????????????????????????????????????? | | ?????????????????????????????????????????????????? | | ?????????????????????????????????????????????????? | | ?????????????????????????????????????????????????? | | ?????????????????????????????????????????????????? | | ?????????????????????????????????????????????????? | | ?????????????????????????????????????????????????? | | ?????????????????????????????????????????????????? | +----------------------------------------------------+ Best States ------------- Heat Dissipation 25 Energy Generation 15 Energy Capacity 250 Matter Stores 300 Matter Capacity 300 Sight Range 16 Terrain Scan Density 10 Armor Coverage 150 Evasion (%) 44 Recoil Reduction 2 Item Schematics ----------------- Hacking Suite | -9/Recycling | Hacked Robot Schematics ------------------ None Fabricated ------------ Nothing Repaired ---------- Nothing Alien Tech Used ----------------- None Achievements -------------- None Challenges ------------ None Game ------ Seed BottomlessDisassembledEngine Manual? 0 Play Time 00:28:50 Cumulative 57.9 hours Start 2025.09.18 @ 21:36:27 End 2025.09.18 @ 22:05:03 Sessions 1 Manual Loads 0 Difficulty Rogue Special Mode None Game No. 113 Rogue 113 Adventurer 0 Explorer 0 Win Type - Total 0 Types 0/0/0/0/0/0/0/0/0/0 Lore% 48 Gallery% 35 Achievement% 32 Wizard Run 0 Options --------- Layout 2 ASCII 0 Keyboard 1 Movement Arrows Keybinds 0 Fullscreen 2 Font 32/SmallcapsGlow Map View 50x44 Zoom Use 0% Tactical HUD 1 Map Filters NONE Filters NONE Steam 1 RUN: fb8f317f-1ad2-4d6f-b237-aa5625f78c8d